fUSD/lending_fUSD_20250113
["ID","MTS","AMOUNT","RATE_DAILY","PERIOD"]
[348770222,1736777458408,-531.49,0.00012187,2]
[348770223,1736777458418,-640.42,0.00012187,2]
[348770224,1736777458428,-1186.93,0.00012187,2]
[348770225,1736777458438,-527.1,0.00012187,2]
[348770226,1736777458450,-500.0,0.00012187,2]
[348770227,1736777458460,-500.0,0.00012187,2]
[348770228,1736777458470,-500.0,0.00012187,2]
[348770229,1736777458482,-1867.13,0.00012187,2]
[348770230,1736777458493,-500.0,0.00012187,2]
[348770231,1736777458503,-516.79,0.00012187,2]
[348770232,1736777458516,-749.12,0.00012187,2]
[348770233,1736777458528,-513.24,0.00012187,2]
[348770234,1736777458540,-2493.44,0.00012187,2]
[348770235,1736777458553,-500.0,0.00012187,2]
[348770236,1736777458564,-1934.61,0.00012187,2]
[348770237,1736777458575,-500.0,0.00012187,2]
[348770238,1736777458585,-500.0,0.00012187,2]
[348770239,1736777458597,-500.0,0.00012187,2]
[348770240,1736777458614,-1775.91,0.00012187,2]
[348770241,1736777458624,-170.76266419,0.00012187,2]
[348770242,1736777458636,-500.0,0.00012187,2]
[348770243,1736777458647,-500.0,0.00012187,2]
[348770244,1736777458658,-500.0,0.00012187,2]
[348770245,1736777458668,-500.0,0.00012187,2]
[348770246,1736777458678,-500.0,0.00012187,2]
[348770247,1736777458688,-872.88,0.00012187,2]
[348770248,1736777458699,-197.45386612,0.00012187,2]
[348770249,1736777458710,-500.0,0.00012187,2]
[348770250,1736777458720,-551.49,0.00012187,2]
[348770251,1736777458731,-500.0,0.00012187,2]
[348770252,1736777458741,-500.0,0.00012187,2]
[348770253,1736777458751,-865.87,0.00012187,2]
[348770254,1736777458761,-500.0,0.00012187,2]
[348770255,1736777458771,-797.99,0.00012187,2]
[348770256,1736777458781,-500.0,0.00012187,2]
[348770257,1736777458791,-940.25,0.00012187,2]
[348770258,1736777458801,-835.52,0.00012187,2]
[348770259,1736777458811,-500.0,0.00012187,2]
[348770260,1736777458821,-500.0,0.00012187,2]
[348770261,1736777458831,-500.0,0.00012188,2]
[348770262,1736777458840,-1107.95,0.00012188,2]
[348770263,1736777458850,-3147.5,0.00012188,2]
[348770264,1736777458866,-500.0,0.00012188,2]
[348770265,1736777458876,-794.02,0.00012188,2]
[348770266,1736777458886,-872.35,0.00012188,2]
[348770267,1736777458896,-674.05,0.00012188,2]
[348770268,1736777458907,-1319.23,0.00012188,2]
[348770269,1736777458917,-1575.65,0.00012188,2]
[348770270,1736777458927,-2283.69,0.00012188,2]
[348770271,1736777458937,-680.21,0.00012188,2]
[348770272,1736777458946,-1931.31,0.00012188,2]
[348770273,1736777458956,-500.0,0.00012188,2]
[348770274,1736777458966,-1060.09,0.00012188,2]
[348770275,1736777458975,-1040.65,0.00012188,2]
[348770276,1736777458984,-761.73,0.00012188,2]
[348770277,1736777458994,-698.49,0.00012188,2]
[348770278,1736777459003,-637.412955,0.00012188,2]
[348770279,1736777459012,-158.280976,0.00012188,2]
[348770280,1736777459022,-159.897959,0.00012188,2]
[348770281,1736777459031,-1037.38,0.00012188,2]
[348770282,1736777459041,-2091.78,0.00012188,2]
[348770283,1736777459051,-500.0,0.00012199,2]
[348770284,1736777459060,-12031.2378,0.000122,2]
[348770285,1736777459069,-215.09248392,0.000122,2]
[348770286,1736777459079,-438.41103873,0.000122,2]
[348770287,1736777459088,-876.49,0.000122,2]
[348770288,1736777459098,-213.96529045,0.000122,2]
[348770289,1736777459113,-240.5866716,0.0001221,2]
[348770290,1736777459122,-500.0,0.00012269,2]
[348770291,1736777459131,-240.5866716,0.00012279,2]
[348770292,1736777459141,-154.999205,0.0001228,3]
[348770293,1736777459150,-907478.18831769,0.0001228,2]
[348770294,1736777459397,-46579.28359642,0.0001228,2]
[348770295,1736777459409,-17550.60357147,0.0001228,2]
[348770296,1736777459422,-15225.67333288,0.0001228,2]
[348770297,1736777459431,-200.0,0.0001229,2]
[348770298,1736777459440,-2000.0,0.00012299,2]
[348770299,1736777459450,-2000.0,0.00012299,2]
[348770300,1736777459459,-2000.0,0.00012299,2]
[348770301,1736777459468,-2000.0,0.00012299,2]
[348770302,1736777459477,-150.0,0.00012299,2]
[348770303,1736777459487,-150.0,0.00012299,2]
[348770304,1736777459496,-150.0,0.00012299,2]
[348770305,1736777459505,-22321.07424811,0.00012299,2]
[348770306,1736777459522,-2420.14254289,0.00012299,2]
[348770307,1736777459533,-393.69097478,0.00012299,2]
[348770308,1736777459545,-5808.89213562,0.00012299,2]
[348770309,1736777459555,-4894.74948958,0.00012299,2]
[348770310,1736777459564,-2318.09952425,0.00012299,2]
[348770311,1736777459573,-2000.0,0.00012299,2]
[348770312,1736777459583,-500.0,0.00012299,2]
[348770313,1736777459592,-150.0,0.00012299,2]
[348770314,1736777459603,-3445.98512395,0.00012299,2]
[348770315,1736777459616,-433.03,0.00012299,2]
[348770316,1736777459625,-671.58,0.00012299,2]
[348770317,1736777459634,-671.58,0.00012299,2]
[348770318,1736777459644,-671.58,0.00012299,2]
[348770319,1736777459654,-671.58,0.00012299,2]
[348770320,1736777459664,-671.58,0.00012299,2]
[348770321,1736777459673,-671.58,0.00012299,2]
[348770322,1736777459683,-671.58,0.00012299,2]
[348770323,1736777459693,-671.58,0.00012299,2]
[348770324,1736777459703,-671.58,0.00012299,2]
[348770325,1736777459713,-671.58,0.00012299,2]
[348770326,1736777459723,-671.58,0.00012299,2]
[348770327,1736777459732,-671.58,0.00012299,2]
[348770328,1736777459742,-671.58,0.00012299,2]
[348770329,1736777459751,-671.58,0.00012299,2]
[348770330,1736777459761,-671.58,0.00012299,2]
[348770331,1736777459771,-671.80438928,0.00012299,2]
[348770332,1736777459782,-18014.33933732,0.000123,4]
[348770333,1736777460134,-324.22562728,0.00010269,2]
[348770334,1736777460147,-175.77437272,0.00010269,2]
[348770335,1736777460156,-500.0,0.00010543,2]
[348770336,1736777460167,-211.28112601,0.00011999,2]
[348770337,1736777460180,-44.77384477,0.00011999,2]
[348770338,1736777460190,-912.3064083,0.000123,4]
[348770339,1736777460203,-5374.10974428,0.000123,4]
[348770340,1736777460223,-500.0,0.00010817,2]
[348770341,1736777460233,-47739.26349311,0.000123,4]
[348770342,1736777460245,-3190.08549262,0.000123,4]
[348770343,1736777460258,-1920.31992297,0.000123,4]
[348770344,1736777460593,-3456.99788779,0.000123,4]
[348770345,1736777460607,-47447.00629292,0.000123,4]
[348770346,1736777460626,-3642.65648,0.000123,4]
[348770347,1736777460948,-384.8,0.00010269,2]
[348770348,1736777460959,-79.94042403,0.00010269,2]
[348770349,1736777460969,-244.74611897,0.00010269,2]
[348770350,1736777460982,-241.93388103,0.00010269,2]
[348770351,1736777460992,-1774.36611897,0.000123,4]
[348770352,1736777461003,-925.43211547,0.000123,4]
[348770353,1736777461021,-13880.54347025,0.000123,4]
[348770354,1736777461033,-389.92578225,0.000123,4]
[348770355,1736777461046,-500.0,0.000123,4]
[348770356,1736777461057,-779513.26871352,0.000123,4]
[348770357,1736777461069,-8143.88149726,0.000123,4]
[348770358,1736777461080,-958.2864318,0.000123,4]
[348770359,1736777461093,-121958.75929051,0.000123,4]
[348770360,1736777461104,-10759.9999,0.000123,4]
[348770361,1736777461347,-1104.0,0.00011708,2]
[348770362,1736777461357,-256.05497078,0.000122,2]
[348770363,1736777461373,-347.84475601,0.000122,2]
[348770364,1736777461383,-808.97939345,0.000123,4]
[348770365,1736777461395,-755.60676301,0.000123,4]
[348770366,1736777461407,-1153.1595407,0.000123,4]
[348770367,1736777461419,-4508.5399997,0.000123,4]
[348770368,1736777461432,-445.419,0.000123,4]
[348770369,1736777461444,-987.87428845,0.000123,4]
[348770370,1736777461456,-406.3120002,0.000123,4]
[348770371,1736777461472,-7919.53467144,0.000123,4]
[348770372,1736777461484,-162259.9999995,0.000123,4]
[348770373,1736777461496,-20044.15111219,0.000123,4]
[348770374,1736777461509,-1494.40615512,0.000123,4]
[348770375,1736777461523,-3284.46134245,0.000123,4]
[348770376,1736777461534,-399.71004,0.000123,4]
[348770377,1736777461546,-2421.6968,0.000123,4]
[348770378,1736777461558,-25253.51778945,0.000123,4]
[348770379,1736777461570,-43067.63479191,0.000123,4]
[348770380,1736777461582,-13444.53837763,0.000123,4]
[348770381,1736777461594,-64618.28349736,0.000123,4]
[348770382,1736777461609,-13191.61799893,0.000123,4]
[348770383,1736777461625,-130802.16236487,0.000123,4]
[348770384,1736777461637,-2996.61865781,0.000123,4]
[348770385,1736777461650,-5570.45453968,0.000123,4]
[348770386,1736777461668,-353.526063,0.000123,4]
[348770387,1736777461680,-2739.95731544,0.000123,4]
[348770388,1736777461692,-174829.7865505,0.000123,4]
[348770390,1736777930886,7032.39209034,0.0001,4]
[348770420,1736778008332,811.34,8.219e-05,2]
[348770422,1736778019827,248.29,0.000192,31]
[348770423,1736778019952,248.29,0.000192,31]
[348770424,1736778020082,248.29,0.000192,31]
[348770425,1736778020263,248.29,0.000192,31]
[348770426,1736778020324,248.29,0.000192,31]
[348770427,1736778020605,248.29,0.000192,31]
[348770428,1736778020655,248.29,0.000192,31]
[348770429,1736778020698,248.29,0.000192,31]
[348770430,1736778020739,248.29,0.000192,31]
[348770431,1736778020787,248.29,0.000192,31]
[348770432,1736778020828,248.29,0.000192,31]
[348770433,1736778020875,248.29,0.000192,31]
[348770434,1736778020915,248.29,0.000192,31]
[348770435,1736778020962,248.29,0.000192,31]
[348770436,1736778021018,248.29,0.000192,31]
[348770437,1736778021081,248.29,0.000192,31]
[348770458,1736778247731,200.000001,0.00021,30]
[348770460,1736778304134,-250.0,8.969e-05,2]
[348770461,1736778304160,-3909.66,9.041e-05,2]
[348770462,1736778304186,-200.0,9.042e-05,2]
[348770463,1736778304215,-5697.95,9.127e-05,2]
[348770464,1736778304240,-17839.1096,9.142e-05,2]
[348770465,1736778304270,-250.0,9.164e-05,2]
[348770466,1736778304295,-170.01,9.217e-05,2]
[348770467,1736778304320,-1204.76,9.24e-05,2]
[348770468,1736778304344,-554.67015027,9.242e-05,2]
[348770469,1736778304370,-23890.0,9.243e-05,2]
[348770470,1736778304394,-193.11,9.243e-05,2]
[348770471,1736778304418,-500.0,9.266e-05,2]
[348770472,1736778304444,-23693.45,9.266e-05,2]
[348770473,1736778304468,-989.47,9.266e-05,2]
[348770474,1736778304492,-264.18,9.266e-05,2]
[348770475,1736778304515,-7727.11,9.266e-05,2]
[348770476,1736778304541,-1000.0,9.279e-05,2]
[348770477,1736778304566,-913.78509,9.442e-05,2]
[348770478,1736778304591,-791.44492,9.442e-05,2]
[348770479,1736778304616,-595.98162,9.442e-05,2]
[348770480,1736778304641,-605.532808,9.442e-05,2]
[348770481,1736778304664,-211.257229,9.442e-05,2]
[348770482,1736778304690,-159.353244,9.442e-05,2]
[348770483,1736778304714,-158.280976,9.442e-05,2]
[348770484,1736778304736,-159.89796,9.442e-05,2]
[348770485,1736778304761,-158.901741,9.442e-05,2]
[348770486,1736778304786,-164.96,9.453e-05,2]
[348770487,1736778304812,-1243.37,9.453e-05,2]
[348770488,1736778304835,-494.03,9.529e-05,2]
[348770489,1736778304861,-913.78509,9.716e-05,2]
[348770490,1736778304885,-791.44492,9.716e-05,2]
[348770491,1736778304909,-595.98162,9.716e-05,2]
[348770492,1736778304934,-605.532808,9.716e-05,2]
[348770493,1736778304961,-913.78509,9.805e-05,2]
[348770494,1736778304986,-791.44492,9.805e-05,2]
[348770495,1736778305011,-595.98162,9.805e-05,2]
[348770496,1736778305036,-605.532808,9.805e-05,2]
[348770497,1736778305062,-200.0,9.978e-05,2]
[348770498,1736778305091,-913.78509,9.985e-05,2]
[348770499,1736778305116,-791.44492,9.985e-05,2]
[348770500,1736778305142,-595.98162,9.985e-05,2]
[348770501,1736778305167,-605.532808,9.985e-05,2]
[348770502,1736778305196,-913.78509,9.987e-05,2]
[348770503,1736778305222,-791.44492,9.987e-05,2]
[348770504,1736778305246,-595.98162,9.987e-05,2]
[348770505,1736778305271,-605.532808,9.987e-05,2]
[348770506,1736778305297,-913.78509,9.99e-05,2]
[348770507,1736778305322,-791.44492,9.99e-05,2]
[348770508,1736778305348,-595.98162,9.99e-05,2]
[348770509,1736778305373,-605.532808,9.99e-05,2]
[348770510,1736778305398,-1225.68,9.995e-05,2]
[348770511,1736778305647,-688.94,9.995e-05,2]
[348770512,1736778305675,-913.78509,9.995e-05,2]
[348770513,1736778305703,-500.0,9.995e-05,2]
[348770514,1736778305729,-791.44492,9.995e-05,2]
[348770515,1736778305757,-1307.37,9.995e-05,2]
[348770516,1736778305798,-500.0,9.995e-05,2]
[348770517,1736778305829,-500.0,9.995e-05,2]
[348770518,1736778305859,-500.0,9.995e-05,2]
[348770519,1736778305887,-1682.23,9.995e-05,2]
[348770520,1736778305915,-595.98162,9.995e-05,2]
[348770521,1736778305944,-605.532808,9.995e-05,2]
[348770522,1736778305974,-529.77,9.995e-05,2]
[348770523,1736778306006,-500.0,9.995e-05,2]
[348770524,1736778306035,-581.4,9.995e-05,2]
[348770525,1736778306066,-891.13,9.995e-05,2]
[348770526,1736778306093,-875.39,9.995e-05,2]
[348770527,1736778306120,-657.81,9.995e-05,2]
[348770528,1736778306148,-159.353244,9.995e-05,2]
[348770529,1736778306177,-500.0,9.995e-05,2]
[348770530,1736778306206,-1782.56,9.995e-05,2]
[348770531,1736778306237,-631.95,9.995e-05,2]
[348770532,1736778306264,-943.2,9.995e-05,2]
[348770533,1736778306291,-500.0,9.995e-05,2]
[348770534,1736778306320,-1082.98,9.995e-05,2]
[348770535,1736778306346,-704.58,9.995e-05,2]
[348770536,1736778306373,-2077.08,9.995e-05,2]
[348770537,1736778306399,-500.0,9.995e-05,2]
[348770538,1736778306426,-767.62,9.995e-05,2]
[348770539,1736778306456,-1030.54,9.995e-05,2]
[348770540,1736778306483,-866.48,9.995e-05,2]
[348770541,1736778306511,-1727.64,9.995e-05,2]
[348770542,1736778306537,-500.0,9.995e-05,2]
[348770543,1736778306563,-898.42,9.995e-05,2]
[348770544,1736778306589,-1357.07,9.995e-05,2]
[348770545,1736778306616,-500.52,9.995e-05,2]
[348770546,1736778306643,-2683.31,9.995e-05,2]
[348770547,1736778306670,-1418.63,9.995e-05,2]
[348770548,1736778306696,-854.94,9.995e-05,2]
[348770549,1736778306721,-500.0,9.995e-05,2]
[348770550,1736778306746,-500.0,9.995e-05,2]
[348770551,1736778306775,-500.0,9.995e-05,2]
[348770552,1736778306801,-500.0,9.995e-05,2]
[348770553,1736778306827,-769.19,9.996e-05,2]
[348770554,1736778306855,-232.64,9.996e-05,2]
[348770555,1736778306881,-765.78,9.996e-05,2]
[348770556,1736778306907,-922.98,9.996e-05,2]
[348770557,1736778306933,-913.78509,9.997e-05,2]
[348770558,1736778306960,-791.44492,9.997e-05,2]
[348770559,1736778306986,-595.98162,9.997e-05,2]
[348770560,1736778307011,-605.532808,9.997e-05,2]
[348770561,1736778307035,-913.78509,9.998e-05,2]
[348770562,1736778307059,-913.78509,9.998e-05,2]
[348770563,1736778307084,-791.44492,9.998e-05,2]
[348770564,1736778307109,-791.44492,9.998e-05,2]
[348770565,1736778307133,-595.98162,9.998e-05,2]
[348770566,1736778307158,-595.98162,9.998e-05,2]
[348770567,1736778307182,-605.532808,9.998e-05,2]
[348770568,1736778307208,-605.532808,9.998e-05,2]
[348770569,1736778307232,-158.901741,9.998e-05,2]
[348770570,1736778307383,500.0,9.995e-05,2]
[348770571,1736778307453,1289.91,9.238e-05,2]
[348770572,1736778309132,814100.41472806,0.0001,2]
[348770573,1736778318638,-1000000.0,0.0001,2]
[348770574,1736778324521,-819.32,9.995e-05,2]
[348770575,1736778324547,-500.0,9.995e-05,2]
[348770576,1736778324576,-998680.68,0.0001,2]
[348770605,1736778500452,-892.17,9.239e-05,2]
[348770606,1736778500475,-250.0,9.371e-05,2]
[348770607,1736778500498,-169.97438,9.442e-05,2]
[348770608,1736778500520,-156.456816,9.442e-05,2]
[348770609,1736778500543,-158.98037,9.442e-05,2]
[348770610,1736778500563,-156.894465,9.442e-05,2]
[348770611,1736778500586,-158.901735,9.442e-05,2]
[348770612,1736778500609,-159.353239,9.442e-05,2]
[348770613,1736778500631,-158.901736,9.442e-05,2]
[348770614,1736778500653,-159.353239,9.442e-05,2]
[348770615,1736778500680,-400.0,9.5e-05,3]
[348770616,1736778500702,-800.0,9.6e-05,3]
[348770617,1736778500724,-1200.0,9.7e-05,3]
[348770618,1736778500745,-265.6203,9.705e-05,2]
[348770619,1736778500767,-4102.05372,9.705e-05,2]
[348770620,1736778506158,-10000.0,9.442e-05,2]
[348770621,1736778511208,-10000.0,9.442e-05,2]
[348770624,1736778518041,-5691.54106587,9.442e-05,2]
[348770625,1736778518064,-4308.45893413,9.705e-05,2]
[348770626,1736778523080,-1216.25934587,9.705e-05,2]
[348770627,1736778523103,-156.456816,9.716e-05,2]
[348770628,1736778523125,-1700.0,9.8e-05,3]
[348770629,1736778523146,-6927.28383813,9.898e-05,2]
[348770630,1736778524027,10000.0,8e-05,2]
[348770631,1736778524049,10000.0,8e-05,2]
[348770632,1736778524078,16698.27,8e-05,2]
[348770633,1736778524100,10000.0,8e-05,2]
[348770634,1736778524123,10000.0,8e-05,2]
[348770635,1736778524144,10000.0,8e-05,2]
[348770636,1736778524164,10000.0,8e-05,2]
[348770637,1736778524185,3187.49530009,8e-05,2]
[348770650,1736778617392,-4123.35724836,0.000212,30]
[348770651,1736778617425,-500.0,0.00021917,30]
[348770652,1736778617454,-500.0,0.00021917,30]
[348770653,1736778617480,-500.0,0.00021917,30]
[348770654,1736778617506,-500.0,0.00021917,30]
[348770655,1736778617532,-500.0,0.00021917,30]
[348770656,1736778617556,-500.0,0.00021917,30]
[348770657,1736778617582,-500.0,0.00021917,30]
[348770658,1736778617607,-500.0,0.00021917,30]
[348770659,1736778617633,-500.0,0.00021917,30]
[348770660,1736778617659,-500.0,0.00021917,30]
[348770661,1736778617685,-500.0,0.00021917,30]
[348770662,1736778617714,-500.0,0.00021917,30]
[348770663,1736778617739,-500.0,0.00021917,30]
[348770664,1736778617766,-500.0,0.00021917,30]
[348770665,1736778617793,-500.0,0.00021917,30]
[348770666,1736778618055,-2000.0,0.00021917,30]
[348770667,1736778618082,-2000.0,0.00021917,30]
[348770668,1736778618110,-2000.0,0.00021917,30]
[348770669,1736778618136,-2000.0,0.00021917,30]
[348770670,1736778618162,-2000.0,0.00021917,30]
[348770671,1736778618188,-2000.0,0.00021917,30]
[348770672,1736778618219,-2000.0,0.00021917,30]
[348770673,1736778618246,-2000.0,0.00021917,30]
[348770674,1736778618273,-2000.0,0.00021917,30]
[348770675,1736778618300,-2000.0,0.00021917,30]
[348770676,1736778618329,-1500.0,0.00021918,30]
[348770677,1736778618356,-1500.0,0.00022045,30]
[348770678,1736778618383,-1500.0,0.00022173,30]
[348770679,1736778618410,-1500.0,0.000223,30]
[348770680,1736778618436,-1500.0,0.00022428,30]
[348770681,1736778618466,-1500.0,0.00022555,30]
[348770682,1736778618492,-1500.0,0.00022682,30]
[348770683,1736778618523,-248.29,0.000228,31]
[348770684,1736778618555,-248.29,0.000228,31]
[348770685,1736778618586,-248.29,0.000228,31]
[348770686,1736778618618,-248.29,0.000228,31]
[348770687,1736778618650,-248.29,0.000228,31]
[348770688,1736778618681,-248.29,0.000228,31]
[348770689,1736778618716,-248.29,0.000228,31]
[348770690,1736778618748,-248.29,0.000228,31]
[348770691,1736778618781,-248.29,0.000228,31]
[348770692,1736778618812,-248.29,0.000228,31]
[348770693,1736778618844,-248.29,0.000228,31]
[348770694,1736778618879,-248.29,0.000228,31]
[348770695,1736778618912,-248.29,0.000228,31]
[348770696,1736778618945,-248.29,0.000228,31]
[348770697,1736778618979,-248.29,0.000228,31]
[348770698,1736778619013,-248.29,0.000228,31]
[348770699,1736778619045,-248.29,0.000228,31]
[348770700,1736778619075,-248.29,0.000228,31]
[348770701,1736778619107,-248.29,0.000228,31]
[348770702,1736778619138,-248.29,0.000228,31]
[348770703,1736778619169,-248.29,0.000228,31]
[348770704,1736778619203,-248.29,0.000228,31]
[348770705,1736778619237,-248.29,0.000228,31]
[348770706,1736778619270,-248.29,0.000228,31]
[348770707,1736778619299,-1500.0,0.0002281,30]
[348770708,1736778619327,-1500.0,0.00022937,30]
[348770709,1736778619355,-1500.0,0.00023065,30]
[348770710,1736778619382,-1500.0,0.00023192,30]
[348770711,1736778619409,-1500.0,0.0002332,30]
[348770712,1736778619435,-1500.0,0.00023447,30]
[348770713,1736778619466,-1500.0,0.00023574,30]
[348770714,1736778619492,-1500.0,0.00023702,30]
[348770715,1736778619520,-150.0,0.00023792,120]
[348770716,1736778619547,-1500.0,0.00023829,30]
[348770717,1736778619576,-1500.0,0.00023957,30]
[348770718,1736778619605,-632.20267332,0.00024,120]
[348770719,1736778619634,-645.81723467,0.00024,30]
[348770720,1736778619662,-500.0,0.00024,30]
[348770721,1736778619689,-500.0,0.00024,30]
[348770722,1736778619723,-500.0,0.00024,30]
[348770723,1736778619751,-639.27661536,0.00024,30]
[348770724,1736778619778,-2000.0,0.00024,30]
[348770725,1736778619806,-2000.0,0.00024,30]
[348770726,1736778619834,-2000.0,0.00024,30]
[348770727,1736778619867,-2000.0,0.00024,30]
[348770728,1736778619897,-2000.0,0.00024,30]
[348770729,1736778619928,-2000.0,0.00024,30]
[348770730,1736778619958,-2000.0,0.00024,30]
[348770731,1736778619987,-2000.0,0.00024,30]
[348770732,1736778620015,-2000.0,0.00024,30]
[348770733,1736778620042,-2000.0,0.00024,30]
[348770734,1736778620069,-500.0,0.00024,30]
[348770735,1736778620096,-1200.0,0.00024,30]
[348770736,1736778620123,-2000.0,0.00024,30]
[348770737,1736778620151,-1200.0,0.00024,30]
[348770738,1736778620178,-2000.0,0.00024,30]
[348770739,1736778620206,-578.37873816,0.00024,30]
[348770740,1736778620234,-2000.0,0.00024,30]
[348770741,1736778620262,-3199.08147358,0.00024,30]
[348770742,1736778620288,-1200.0,0.00024,30]
[348770743,1736778620314,-500.0,0.00024,30]
[348770744,1736778620340,-500.0,0.00024,30]
[348770745,1736778620367,-500.0,0.00024,30]
[348770746,1736778620394,-1200.0,0.00024,30]
[348770747,1736778620421,-500.0,0.00024,30]
[348770748,1736778620447,-1200.0,0.00024,30]
[348770749,1736778620481,-500.0,0.00024,30]
[348770750,1736778620507,-1200.0,0.00024,30]
[348770751,1736778620534,-500.0,0.00024,30]
[348770752,1736778620560,-1200.0,0.00024,30]
[348770753,1736778620586,-970.54630498,0.00024,30]
[348770754,1736778620613,-1200.0,0.00024,30]
[348770755,1736778620639,-1200.0,0.00024,30]
[348770756,1736778620666,-754.51110798,0.00024,30]
[348770757,1736778620693,-1200.0,0.00024,30]
[348770758,1736778620723,-1200.0,0.00024,30]
[348770759,1736778620930,-1200.0,0.00024,30]
[348770760,1736778620959,-1200.0,0.00024,30]
[348770761,1736778620988,-2098.40406158,0.00024,30]
[348770762,1736778621016,-536.86873378,0.00024,30]
[348770763,1736778621047,-500.0,0.00024,30]
[348770764,1736778621079,-500.0,0.00024,30]
[348770765,1736778621106,-500.0,0.00024,30]
[348770766,1736778621132,-500.0,0.00024,30]
[348770767,1736778621159,-500.0,0.00024,30]
[348770768,1736778621185,-500.0,0.00024,30]
[348770769,1736778621215,-626.2361546,0.00024,30]
[348770770,1736778621241,-500.0,0.00024,30]
[348770771,1736778621268,-500.0,0.00024,30]
[348770772,1736778621293,-708.49754591,0.00024,30]
[348770773,1736778621319,-700.0,0.00024,30]
[348770774,1736778621346,-500.0,0.00024,30]
[348770775,1736778621373,-700.0,0.00024,30]
[348770776,1736778621399,-500.0,0.00024,30]
[348770777,1736778621429,-700.0,0.00024,30]
[348770778,1736778621462,-500.0,0.00024,30]
[348770779,1736778621488,-700.0,0.00024,30]
[348770780,1736778621513,-500.0,0.00024,30]
[348770781,1736778621539,-700.0,0.00024,30]
[348770782,1736778621564,-500.0,0.00024,30]
[348770783,1736778621589,-700.0,0.00024,30]
[348770784,1736778621615,-500.0,0.00024,30]
[348770785,1736778621641,-700.0,0.00024,30]
[348770786,1736778621666,-700.0,0.00024,30]
[348770787,1736778621692,-500.0,0.00024,30]
[348770788,1736778621725,-700.0,0.00024,30]
[348770789,1736778621750,-700.0,0.00024,30]
[348770790,1736778621775,-500.0,0.00024,30]
[348770791,1736778621801,-700.0,0.00024,30]
[348770792,1736778621826,-700.0,0.00024,30]
[348770793,1736778621854,-500.0,0.00024,30]
[348770794,1736778621880,-700.0,0.00024,30]
[348770795,1736778621908,-700.0,0.00024,30]
[348770796,1736778621934,-500.0,0.00024,30]
[348770797,1736778621965,-700.0,0.00024,30]
[348770798,1736778621991,-700.0,0.00024,30]
[348770799,1736778622017,-500.0,0.00024,30]
[348770800,1736778622043,-700.0,0.00024,30]
[348770801,1736778622068,-700.0,0.00024,30]
[348770802,1736778622094,-500.0,0.00024,30]
[348770803,1736778622119,-876.27454301,0.00024,30]
[348770804,1736778622145,-700.0,0.00024,30]
[348770805,1736778622171,-826.15786063,0.00024,30]
[348770806,1736778622196,-700.0,0.00024,30]
[348770807,1736778622226,-700.0,0.00024,30]
[348770808,1736778622252,-700.0,0.00024,30]
[348770809,1736778622278,-700.0,0.00024,30]
[348770810,1736778622304,-700.0,0.00024,30]
[348770811,1736778622330,-1028.54982689,0.00024,30]
[348770812,1736778622355,-500.0,0.00024,30]
[348770813,1736778622382,-500.0,0.00024,30]
[348770814,1736778622407,-500.0,0.00024,30]
[348770815,1736778622436,-500.0,0.00024,30]